[Event "*** Titled Tuesday Blitz"]
[Site "Chess.com"]
[Date "2020.05.05"]
[Round "7"]
[White "Sosat98"]
[Black "BasilSmash"]
[Result "1/2-1/2"]
[WhiteElo "2652"]
[BlackElo "2442"]
[TimeControl "180+1"]
[EndTime "11:21:08 PDT"]
[Termination "Game drawn by agreement"]

1. e4 {[%clk 0:03:00.9]} 1... c6 {[%clk 0:02:57.9]} 2. d4 {[%clk 0:02:57.8]}
2... d5 {[%clk 0:02:58.8]} 3. Nd2 {[%clk 0:02:56.3]} 3... dxe4 {[%clk
0:02:58.4]} 4. Nxe4 {[%clk 0:02:56.9]} 4... Bf5 {[%clk 0:02:58.4]} 5. Ng3 {[%clk
0:02:57.5]} 5... Bg6 {[%clk 0:02:58.7]} 6. Nh3 {[%clk 0:02:58.1]} 6... Nf6
{[%clk 0:02:57.7]} 7. Nf4 {[%clk 0:02:58.4]} 7... e5 {[%clk 0:02:57.4]} 8. dxe5
{[%clk 0:02:49.1]} 8... Qa5+ {[%clk 0:02:56.8]} 9. c3 {[%clk 0:02:29.2]} 9...
Qxe5+ {[%clk 0:02:55.4]} 10. Be2 {[%clk 0:02:25.5]} 10... Nbd7 {[%clk
0:02:53.5]} 11. O-O {[%clk 0:02:25.2]} 11... O-O-O {[%clk 0:02:42.8]} 12. Re1
{[%clk 0:02:16.6]} 12... Nc5 {[%clk 0:02:32.6]} 13. Bg4+ {[%clk 0:02:14.6]}
13... Nxg4 {[%clk 0:02:31.4]} 14. Qxg4+ {[%clk 0:02:14.1]} 14... f5 {[%clk
0:02:15]} 15. Rxe5 {[%clk 0:02:11]} 15... fxg4 {[%clk 0:02:14.2]} 16. Be3 {[%clk
0:02:05.5]} 16... Nd3 {[%clk 0:02:10.6]} 17. Nxg6 {[%clk 0:01:37.8]} 17... hxg6
{[%clk 0:02:09.2]} 18. Rg5 {[%clk 0:01:38.4]} 18... Nxb2 {[%clk 0:02:07.7]} 19.
Rxg4 {[%clk 0:01:34.6]} 19... Rd1+ {[%clk 0:02:05.7]} 20. Rxd1 {[%clk
0:01:33.6]} 20... Nxd1 {[%clk 0:02:06.6]} 21. Bxa7 {[%clk 0:01:07.4]} 21... Nxc3
{[%clk 0:02:01.5]} 22. Rxg6 {[%clk 0:01:07.9]} 22... Nxa2 {[%clk 0:01:57.5]} 23.
Bd4 {[%clk 0:01:06.5]} 23... Nc1 {[%clk 0:01:29]} 24. Bxg7 {[%clk 0:00:53.3]}
24... Rg8 {[%clk 0:01:26.3]} 25. Nf5 {[%clk 0:00:52.9]} 25... Bxg7 {[%clk
0:01:17.5]} 26. Nxg7 {[%clk 0:00:45.8]} 26... Kd7 {[%clk 0:01:11]} 27. h4 {[%clk
0:00:45.4]} 27... b5 {[%clk 0:01:09.3]} 28. h5 {[%clk 0:00:43.1]} 28... Ne2+
{[%clk 0:01:01.9]} 29. Kf1 {[%clk 0:00:30.9]} 29... Nf4 {[%clk 0:01:00.7]} 30.
Rf6 {[%clk 0:00:29.7]} 30... Rxg7 {[%clk 0:00:22.8]} 31. Rxf4 {[%clk 0:00:29.5]}
31... c5 {[%clk 0:00:23.1]} 32. g4 {[%clk 0:00:28.1]} 32... b4 {[%clk
0:00:22.7]} 33. h6 {[%clk 0:00:28.6]} 33... Rg6 {[%clk 0:00:21.8]} 34. Rf7+
{[%clk 0:00:19.9]} 34... Ke6 {[%clk 0:00:20.3]} 35. h7 {[%clk 0:00:20.5]} 35...
Rh6 {[%clk 0:00:19.6]} 36. Rb7 {[%clk 0:00:16.8]} 36... Rh4 {[%clk 0:00:06.1]}
37. g5 {[%clk 0:00:15.4]} 37... Kf5 {[%clk 0:00:06.1]} 38. Rg7 {[%clk 0:00:09]}
38... b3 {[%clk 0:00:04.2]} 39. Ke2 {[%clk 0:00:03.2]} 39... b2 {[%clk
0:00:03.8]} 40. Rb7 {[%clk 0:00:03.5]} 40... Kxg5 {[%clk 0:00:03.8]} 41. Rxb2
{[%clk 0:00:01.7]} 41... Rxh7 {[%clk 0:00:03.3]} 42. Rb5 {[%clk 0:00:01.6]}
42... Rc7 {[%clk 0:00:02.9]} 43. Kd3 {[%clk 0:00:02.1]} 43... Kf4 {[%clk
0:00:03.1]} 44. Rb2 {[%clk 0:00:02.5]} 44... Kf3 {[%clk 0:00:03.2]} 45. Kc4
{[%clk 0:00:02.9]} 45... Re7 {[%clk 0:00:02.9]} 46. Kc3 {[%clk 0:00:03.4]} 46...
Re4 {[%clk 0:00:02.5]} 47. Rb5 {[%clk 0:00:03.9]} 47... c4 {[%clk 0:00:02.5]}
48. Rf5+ {[%clk 0:00:04.3]} 48... Kg4 {[%clk 0:00:03.2]} 49. Rf8 {[%clk
0:00:04.2]} 49... Rf4 {[%clk 0:00:04.1]} 50. Rg8+ {[%clk 0:00:04.4]} 50... Kf3
{[%clk 0:00:04.3]} 51. Rg3+ {[%clk 0:00:03.4]} 51... Kxf2 {[%clk 0:00:04.3]} 52.
Rh3 {[%clk 0:00:04.1]} 52... Kg2 {[%clk 0:00:04.7]} 53. Rh8 {[%clk 0:00:04.2]}
53... Rg4 {[%clk 0:00:05.6]} 54. Re8 {[%clk 0:00:04.5]} 54... Kg3 {[%clk
0:00:06.5]} 55. Rd8 {[%clk 0:00:04.9]} 55... Rf4 {[%clk 0:00:07.4]} 56. Rd4
{[%clk 0:00:05.3]} 56... Kf3 {[%clk 0:00:08.3]} 57. Rd8 {[%clk 0:00:05.2]} 57...
Re4 {[%clk 0:00:08.4]} 58. Rc8 {[%clk 0:00:05.5]} 58... Rf4 {[%clk 0:00:09.3]}
59. Rd8 {[%clk 0:00:05.7]} 59... Re4 {[%clk 0:00:10]} 60. Rf8+ {[%clk
0:00:06.1]} 60... Rf4 {[%clk 0:00:10.9]} 61. Rc8 {[%clk 0:00:06.5]} 61... Re4
{[%clk 0:00:11.3]} 62. Rxc4 {[%clk 0:00:07.2]} 62... Rf4 {[%clk 0:00:12.2]} 63.
Rc5 {[%clk 0:00:07.9]} 63... Re4 {[%clk 0:00:12.4]} 64. Kd3 {[%clk 0:00:08.4]}
64... Rf4 {[%clk 0:00:13.3]} 65. Rc8 {[%clk 0:00:08.8]} 65... Rf5 {[%clk
0:00:13.3]} 66. Re8 {[%clk 0:00:09.1]} 66... Kf4 {[%clk 0:00:13.3]} 67. Kd4
{[%clk 0:00:09.4]} 67... Rf6 {[%clk 0:00:13.3]} 68. Re1 {[%clk 0:00:09.7]} 68...
Rf5 {[%clk 0:00:13.2]} 69. Rf1+ {[%clk 0:00:09.9]} 69... Kg5 {[%clk 0:00:13.2]}
70. Rg1+ {[%clk 0:00:10.6]} 70... Kf6 {[%clk 0:00:13.1]} 71. Ke4 {[%clk
0:00:10.4]} 71... Re5+ {[%clk 0:00:13.3]} 72. Kf4 {[%clk 0:00:10.8]} 72... Rf5+
{[%clk 0:00:13.5]} 73. Ke4 {[%clk 0:00:11.4]} 73... Re5+ {[%clk 0:00:13.9]} 74.
Kd4 {[%clk 0:00:12]} 74... Rf5 {[%clk 0:00:14.1]} 75. Rh1 {[%clk 0:00:12.5]}
75... Rf4+ {[%clk 0:00:13.5]} 76. Kd5 {[%clk 0:00:12.8]} 76... Kf5 {[%clk
0:00:13.5]} 77. Rh5+ {[%clk 0:00:12.6]} 77... Kg4 {[%clk 0:00:12.3]} 78. Rh8
{[%clk 0:00:13.2]} 78... Kf3 {[%clk 0:00:12.3]} 79. Ke5 {[%clk 0:00:13.3]} 79...
Re4+ {[%clk 0:00:12.4]} 80. Kd5 {[%clk 0:00:08.6]} 1/2-1/2

[Event "*** Titled Tuesday Blitz"]
[Site "Chess.com"]
[Date "2020.05.05"]
[Round "7"]
[White "pandamaster3000"]
[Black "kingofthenil"]
[Result "1/2-1/2"]
[WhiteElo "2311"]
[BlackElo "2465"]
[TimeControl "180+1"]
[EndTime "11:21:25 PDT"]
[Termination "Game drawn by stalemate"]

1. e4 {[%clk 0:03:00.9]} 1... Nc6 {[%clk 0:02:58.9]} 2. Nf3 {[%clk 0:02:59.2]}
2... d5 {[%clk 0:02:58.6]} 3. exd5 {[%clk 0:02:58.7]} 3... Qxd5 {[%clk
0:02:59.5]} 4. Nc3 {[%clk 0:02:58.4]} 4... Qh5 {[%clk 0:02:59.1]} 5. Be2 {[%clk
0:02:49.2]} 5... Bg4 {[%clk 0:02:58.8]} 6. d3 {[%clk 0:02:44.5]} 6... O-O-O
{[%clk 0:02:57.5]} 7. Bf4 {[%clk 0:02:09.8]} 7... e5 {[%clk 0:02:57.2]} 8. Bg3
{[%clk 0:02:09.7]} 8... f5 {[%clk 0:02:49.6]} 9. h3 {[%clk 0:01:55.6]} 9... e4
{[%clk 0:02:46]} 10. Nd2 {[%clk 0:01:54.6]} 10... Bxe2 {[%clk 0:02:44.6]} 11.
Qxe2 {[%clk 0:01:54.2]} 11... Qxe2+ {[%clk 0:02:44.4]} 12. Kxe2 {[%clk
0:01:55.1]} 12... Nd4+ {[%clk 0:02:41.1]} 13. Kd1 {[%clk 0:01:55.2]} 13... exd3
{[%clk 0:02:42]} 14. cxd3 {[%clk 0:01:55.9]} 14... Nf6 {[%clk 0:02:42.2]} 15.
Re1 {[%clk 0:01:37.4]} 15... Bb4 {[%clk 0:02:39.2]} 16. a3 {[%clk 0:01:25.8]}
16... Bc5 {[%clk 0:02:25.2]} 17. Bf4 {[%clk 0:01:05]} 17... Rhe8 {[%clk
0:02:15.9]} 18. Rxe8 {[%clk 0:01:00.4]} 18... Rxe8 {[%clk 0:02:16.8]} 19. Be3
{[%clk 0:01:00.5]} 19... Rd8 {[%clk 0:01:41.4]} 20. Bxd4 {[%clk 0:00:52.1]}
20... Bxd4 {[%clk 0:01:42.3]} 21. Ke2 {[%clk 0:00:52]} 21... Re8+ {[%clk
0:01:41.1]} 22. Kf1 {[%clk 0:00:51.7]} 22... Bxc3 {[%clk 0:01:36.2]} 23. bxc3
{[%clk 0:00:52.6]} 23... Nd5 {[%clk 0:01:37.1]} 24. Rc1 {[%clk 0:00:46.8]} 24...
Nf4 {[%clk 0:01:29.9]} 25. d4 {[%clk 0:00:43.3]} 25... Re2 {[%clk 0:01:30]} 26.
Nc4 {[%clk 0:00:38.2]} 26... Ra2 {[%clk 0:01:28.9]} 27. g3 {[%clk 0:00:31.9]}
27... Nd3 {[%clk 0:00:53.9]} 28. Rd1 {[%clk 0:00:23.9]} 28... Nxf2 {[%clk
0:00:52.4]} 29. Re1 {[%clk 0:00:23.8]} 29... Ne4 {[%clk 0:00:47.7]} 30. g4
{[%clk 0:00:20.6]} 30... Ng3+ {[%clk 0:00:27.7]} 31. Kg1 {[%clk 0:00:19.9]}
31... fxg4 {[%clk 0:00:28.6]} 32. hxg4 {[%clk 0:00:18.6]} 32... Ne2+ {[%clk
0:00:27.8]} 33. Kh1 {[%clk 0:00:17.8]} 33... Nxc3 {[%clk 0:00:26.1]} 34. Re8+
{[%clk 0:00:17.5]} 34... Kd7 {[%clk 0:00:25.9]} 35. Rg8 {[%clk 0:00:18.4]} 35...
g6 {[%clk 0:00:18.9]} 36. Rg7+ {[%clk 0:00:18.7]} 36... Kc6 {[%clk 0:00:18.9]}
37. Rxh7 {[%clk 0:00:19]} 37... Ne4 {[%clk 0:00:18.8]} 38. Ne5+ {[%clk
0:00:18.4]} 38... Kd5 {[%clk 0:00:18.9]} 39. Nxg6 {[%clk 0:00:16.1]} 39... Nf2+
{[%clk 0:00:19]} 40. Kg1 {[%clk 0:00:15.4]} 40... Nxg4 {[%clk 0:00:19.9]} 41.
Rxc7 {[%clk 0:00:15.3]} 41... Rb2 {[%clk 0:00:19.5]} 42. Rd7+ {[%clk 0:00:14]}
42... Ke4 {[%clk 0:00:19.3]} 43. d5 {[%clk 0:00:11.7]} 43... Kf3 {[%clk
0:00:18.5]} 44. Nh4+ {[%clk 0:00:12.2]} 44... Kg3 {[%clk 0:00:18.2]} 45. Nf5+
{[%clk 0:00:12.7]} 45... Kf4 {[%clk 0:00:18.3]} 46. Nd4 {[%clk 0:00:11.3]} 46...
Ke4 {[%clk 0:00:16.3]} 47. Ne6 {[%clk 0:00:11]} 47... Kf3 {[%clk 0:00:15.4]} 48.
Ng5+ {[%clk 0:00:10.9]} 48... Kg3 {[%clk 0:00:15.2]} 49. Ne4+ {[%clk 0:00:11.2]}
49... Kf4 {[%clk 0:00:15.2]} 50. Nc5 {[%clk 0:00:10.2]} 50... Kf3 {[%clk
0:00:10.4]} 51. Rxb7 {[%clk 0:00:09.3]} 51... Rc2 {[%clk 0:00:09.4]} 52. Rf7+
{[%clk 0:00:08.6]} 52... Ke3 {[%clk 0:00:04.6]} 53. Ne6 {[%clk 0:00:08]} 53...
Nf2 {[%clk 0:00:02.5]} 54. Rc7 {[%clk 0:00:05.6]} 54... Nh3+ {[%clk 0:00:02.2]}
55. Kf1 {[%clk 0:00:04.7]} 55... Ra2 {[%clk 0:00:03.1]} 56. Rc1 {[%clk
0:00:03.8]} 56... Rf2+ {[%clk 0:00:02.9]} 57. Ke1 {[%clk 0:00:03.7]} 57... Rh2
{[%clk 0:00:03.8]} 58. Rc3+ {[%clk 0:00:02.7]} 58... Ke4 {[%clk 0:00:04.2]} 59.
d6 {[%clk 0:00:01.9]} 59... Rh1+ {[%clk 0:00:01.9]} 60. Kd2 {[%clk 0:00:02.2]}
60... Ng1 {[%clk 0:00:02.8]} 61. Kc2 {[%clk 0:00:02.6]} 61... Nf3 {[%clk
0:00:03.7]} 62. Kb3 {[%clk 0:00:02.6]} 62... Rd1 {[%clk 0:00:02.7]} 63. Ka4
{[%clk 0:00:03]} 63... Rxd6 {[%clk 0:00:01.9]} 64. Nc5+ {[%clk 0:00:03.3]} 64...
Kf4 {[%clk 0:00:01.5]} 65. Nb3 {[%clk 0:00:03.3]} 65... Kg3 {[%clk 0:00:01.7]}
66. Kb5 {[%clk 0:00:04.2]} 66... Rd5+ {[%clk 0:00:01.5]} 67. Kc4 {[%clk
0:00:03.8]} 67... Rd8 {[%clk 0:00:02.4]} 68. Rxf3+ {[%clk 0:00:04.3]} 68... Kg2
{[%clk 0:00:03.3]} 69. Rd3 {[%clk 0:00:03.6]} 69... Rc8+ {[%clk 0:00:03.8]} 70.
Nc5 {[%clk 0:00:03.8]} 70... Rb8 {[%clk 0:00:04.7]} 71. Rd7 {[%clk 0:00:03.9]}
71... Rc8 {[%clk 0:00:05.6]} 72. Rxa7 {[%clk 0:00:04.1]} 72... Kf3 {[%clk
0:00:06.2]} 73. Rg7 {[%clk 0:00:05]} 73... Kf4 {[%clk 0:00:07.1]} 74. Re7 {[%clk
0:00:05.4]} 74... Kf5 {[%clk 0:00:08]} 75. Rd7 {[%clk 0:00:05.7]} 75... Kf6
{[%clk 0:00:08.9]} 76. Rd5 {[%clk 0:00:06.6]} 76... Ke7 {[%clk 0:00:08.8]} 77.
a4 {[%clk 0:00:07.5]} 77... Ra8 {[%clk 0:00:09.3]} 78. Re5+ {[%clk 0:00:07.7]}
78... Kd6 {[%clk 0:00:09.1]} 79. Re1 {[%clk 0:00:08.4]} 79... Kc6 {[%clk
0:00:09.1]} 80. Rb1 {[%clk 0:00:08.5]} 80... Rh8 {[%clk 0:00:08.6]} 81. Rd1
{[%clk 0:00:07.8]} 81... Rh4+ {[%clk 0:00:08.3]} 82. Rd4 {[%clk 0:00:08.3]}
82... Rh5 {[%clk 0:00:09.2]} 83. Nb3 {[%clk 0:00:08.5]} 83... Rh2 {[%clk
0:00:07.8]} 84. Kb4 {[%clk 0:00:08.2]} 84... Kb6 {[%clk 0:00:06]} 85. Rc4 {[%clk
0:00:08.6]} 85... Rh3 {[%clk 0:00:04.3]} 86. a5+ {[%clk 0:00:09.5]} 86... Ka6
{[%clk 0:00:04.1]} 87. Rc6+ {[%clk 0:00:09.6]} 87... Kb7 {[%clk 0:00:03.9]} 88.
Rb6+ {[%clk 0:00:09.3]} 88... Ka7 {[%clk 0:00:04.4]} 89. Nc5 {[%clk 0:00:09.5]}
89... Rh4+ {[%clk 0:00:03.1]} 90. Kb5 {[%clk 0:00:08.9]} 90... Rh5 {[%clk
0:00:04]} 91. Rb7+ {[%clk 0:00:08.4]} 91... Ka8 {[%clk 0:00:03.5]} 92. a6 {[%clk
0:00:08.9]} 92... Rxc5+ {[%clk 0:00:02.1]} 93. Kb6 {[%clk 0:00:08.2]} 93... Rc6+
{[%clk 0:00:02.3]} 94. Kb5 {[%clk 0:00:07.2]} 94... Rc5+ {[%clk 0:00:02.6]} 95.
Kb4 {[%clk 0:00:07]} 95... Rc6 {[%clk 0:00:01.3]} 96. Ka5 {[%clk 0:00:05]} 96...
Rxa6+ {[%clk 0:00:01.1]} 97. Kxa6 {[%clk 0:00:05.5]} 1/2-1/2

[Event "*** Titled Tuesday Blitz"]
[Site "Chess.com"]
[Date "2020.05.05"]
[Round "7"]
[White "MaxLeto"]
[Black "RianKapriaga"]
[Result "1-0"]
[WhiteElo "2333"]
[BlackElo "2144"]
[TimeControl "180+1"]
[EndTime "11:21:34 PDT"]
[Termination "MaxLeto won by checkmate"]

1. g4 {[%clk 0:03:00.9]} 1... d5 {[%clk 0:02:56.9]} 2. Bg2 {[%clk 0:02:58.5]}
2... c6 {[%clk 0:02:57.1]} 3. g5 {[%clk 0:02:57.6]} 3... h6 {[%clk 0:02:56.3]}
4. gxh6 {[%clk 0:02:56.3]} 4... Nxh6 {[%clk 0:02:56]} 5. d4 {[%clk 0:02:53.1]}
5... Nf5 {[%clk 0:02:54.5]} 6. Nf3 {[%clk 0:02:49.6]} 6... e6 {[%clk 0:02:51.3]}
7. Nbd2 {[%clk 0:02:42.5]} 7... Nd7 {[%clk 0:02:51.2]} 8. Nf1 {[%clk 0:02:42.3]}
8... Bd6 {[%clk 0:02:50.4]} 9. Ng3 {[%clk 0:02:41]} 9... Nxg3 {[%clk 0:02:49.1]}
10. hxg3 {[%clk 0:02:40.6]} 10... Rxh1+ {[%clk 0:02:48.5]} 11. Bxh1 {[%clk
0:02:41.5]} 11... Qf6 {[%clk 0:02:44.5]} 12. Bg5 {[%clk 0:02:35.8]} 12... Qg6
{[%clk 0:02:43.6]} 13. Qd2 {[%clk 0:02:35.6]} 13... f6 {[%clk 0:02:38.8]} 14.
Be3 {[%clk 0:02:28.6]} 14... e5 {[%clk 0:02:36.7]} 15. O-O-O {[%clk 0:02:24.7]}
15... b6 {[%clk 0:02:23.9]} 16. dxe5 {[%clk 0:01:55.9]} 16... Nxe5 {[%clk
0:02:18.7]} 17. Nxe5 {[%clk 0:01:43.6]} 17... fxe5 {[%clk 0:01:56.5]} 18. Bxd5
{[%clk 0:01:37.6]} 18... cxd5 {[%clk 0:01:51.7]} 19. Qxd5 {[%clk 0:01:38.5]}
19... Rb8 {[%clk 0:01:29.9]} 20. Qxd6 {[%clk 0:01:24.8]} 20... Qxd6 {[%clk
0:01:28.8]} 21. Rxd6 {[%clk 0:01:25.7]} 21... Ke7 {[%clk 0:01:24.4]} 22. Rd5
{[%clk 0:01:21]} 22... Ke6 {[%clk 0:01:07.9]} 23. Rd8 {[%clk 0:01:18.9]} 23...
Ra8 {[%clk 0:01:07.8]} 24. Re8+ {[%clk 0:00:55.1]} 24... Kf6 {[%clk 0:01:06.2]}
25. c4 {[%clk 0:00:30.1]} 25... Bb7 {[%clk 0:01:02.9]} 26. Rxa8 {[%clk 0:00:31]}
26... Bxa8 {[%clk 0:01:01.2]} 27. Kd2 {[%clk 0:00:30.1]} 27... g5 {[%clk
0:00:55.5]} 28. Kc3 {[%clk 0:00:24.9]} 28... g4 {[%clk 0:00:53.6]} 29. c5 {[%clk
0:00:21.8]} 29... bxc5 {[%clk 0:00:52.4]} 30. Bxc5 {[%clk 0:00:22.7]} 30... a6
{[%clk 0:00:52.8]} 31. Kb4 {[%clk 0:00:21]} 31... Bd5 {[%clk 0:00:49.1]} 32. a4
{[%clk 0:00:20.4]} 32... Ke6 {[%clk 0:00:46.3]} 33. Ka5 {[%clk 0:00:14.8]} 33...
Bc4 {[%clk 0:00:45.7]} 34. e4 {[%clk 0:00:13]} 34... Bd3 {[%clk 0:00:44.8]} 35.
b4 {[%clk 0:00:12.5]} 35... Kd7 {[%clk 0:00:42]} 36. Kb6 {[%clk 0:00:12]} 36...
Ke6 {[%clk 0:00:35.5]} 37. Bf8 {[%clk 0:00:05.8]} 37... Kd7 {[%clk 0:00:32.5]}
38. Bg7 {[%clk 0:00:05.2]} 38... Ke6 {[%clk 0:00:32.5]} 39. Ka5 {[%clk
0:00:01.5]} 39... Kd6 {[%clk 0:00:32.1]} 40. b5 {[%clk 0:00:01.9]} 40... axb5
{[%clk 0:00:31.7]} 41. axb5 {[%clk 0:00:02.8]} 41... Bxe4 {[%clk 0:00:32.1]} 42.
Ka6 {[%clk 0:00:03.1]} 42... Bd3 {[%clk 0:00:28.4]} 43. Kb6 {[%clk 0:00:03.3]}
43... e4 {[%clk 0:00:26.5]} 44. Ka5 {[%clk 0:00:02.5]} 44... Kc7 {[%clk
0:00:25]} 45. Bd4 {[%clk 0:00:02]} 45... Kd6 {[%clk 0:00:21.8]} 46. Kb4 {[%clk
0:00:02.5]} 46... Kd5 {[%clk 0:00:20.7]} 47. Be3 {[%clk 0:00:02.9]} 47... Be2
{[%clk 0:00:18.6]} 48. Ka5 {[%clk 0:00:03.1]} 48... Kd6 {[%clk 0:00:17.6]} 49.
b6 {[%clk 0:00:03.3]} 49... Kc6 {[%clk 0:00:17.1]} 50. Kb4 {[%clk 0:00:04.2]}
50... Ba6 {[%clk 0:00:13.2]} 51. Kc3 {[%clk 0:00:04.1]} 51... Kd5 {[%clk
0:00:13.3]} 52. Kd2 {[%clk 0:00:04.3]} 52... Kc4 {[%clk 0:00:11.7]} 53. Bf4
{[%clk 0:00:03.5]} 53... Kd4 {[%clk 0:00:09.9]} 54. Bc7 {[%clk 0:00:03.7]} 54...
Bb7 {[%clk 0:00:07.6]} 55. Bd8 {[%clk 0:00:04]} 55... Ba6 {[%clk 0:00:07.2]} 56.
Bf6+ {[%clk 0:00:03.5]} 56... Kd5 {[%clk 0:00:02.7]} 57. Ke3 {[%clk 0:00:03.1]}
57... Bb7 {[%clk 0:00:01.2]} 58. Bd8 {[%clk 0:00:04]} 58... Bc8 {[%clk
0:00:01.3]} 59. Bc7 {[%clk 0:00:04.9]} 59... Bb7 {[%clk 0:00:01.5]} 60. Kf4
{[%clk 0:00:05.8]} 60... Bc8 {[%clk 0:00:02]} 61. Kg5 {[%clk 0:00:06]} 61... Kd4
{[%clk 0:00:02.5]} 62. Bf4 {[%clk 0:00:05.4]} 62... Kd5 {[%clk 0:00:01.9]} 63.
Be3 {[%clk 0:00:06.3]} 63... Bb7 {[%clk 0:00:01.6]} 64. Kxg4 {[%clk 0:00:06.2]}
64... Bc8+ {[%clk 0:00:02.1]} 65. Kf4 {[%clk 0:00:06.2]} 65... Bb7 {[%clk
0:00:01.4]} 66. g4 {[%clk 0:00:06.5]} 66... Ke6 {[%clk 0:00:02]} 67. Kg5 {[%clk
0:00:07]} 67... Ke5 {[%clk 0:00:02.3]} 68. Kh6 {[%clk 0:00:06.8]} 68... Ke6
{[%clk 0:00:02.8]} 69. g5 {[%clk 0:00:07.7]} 69... Kf5 {[%clk 0:00:02]} 70. g6
{[%clk 0:00:08.6]} 70... Bd5 {[%clk 0:00:02.1]} 71. g7 {[%clk 0:00:08.9]} 71...
Kf6 {[%clk 0:00:02.6]} 72. b7 {[%clk 0:00:09.1]} 72... Bxb7 {[%clk 0:00:03]} 73.
g8=Q {[%clk 0:00:09.6]} 73... Bd5 {[%clk 0:00:03.1]} 74. Qg5+ {[%clk 0:00:10.5]}
74... Ke6 {[%clk 0:00:02.9]} 75. Bd4 {[%clk 0:00:11.4]} 75... Kd6 {[%clk
0:00:02.4]} 76. Qe5+ {[%clk 0:00:12.3]} 76... Kc6 {[%clk 0:00:02.7]} 77. Qf6+
{[%clk 0:00:13]} 77... Kb5 {[%clk 0:00:02.8]} 78. Qd6 {[%clk 0:00:13.4]} 78...
Kc4 {[%clk 0:00:03.1]} 79. Qc5+ {[%clk 0:00:13.6]} 79... Kd3 {[%clk 0:00:03.6]}
80. Qxd5 {[%clk 0:00:14.5]} 80... e3 {[%clk 0:00:04]} 81. Bxe3+ {[%clk
0:00:14.4]} 81... Ke2 {[%clk 0:00:04.4]} 82. Qd2+ {[%clk 0:00:14.7]} 82... Kf1
{[%clk 0:00:04.8]} 83. Qd3+ {[%clk 0:00:13.2]} 83... Kg2 {[%clk 0:00:05]} 84.
Qg6+ {[%clk 0:00:12.9]} 84... Kf1 {[%clk 0:00:05]} 85. Bg5 {[%clk 0:00:12.4]}
85... Kg2 {[%clk 0:00:04.9]} 86. f4 {[%clk 0:00:12.9]} 86... Kh3 {[%clk
0:00:05.3]} 87. f5 {[%clk 0:00:13.8]} 87... Kg4 {[%clk 0:00:05.2]} 88. f6 {[%clk
0:00:14.7]} 88... Kh3 {[%clk 0:00:05.8]} 89. f7 {[%clk 0:00:15.6]} 89... Kh2
{[%clk 0:00:06.4]} 90. f8=Q {[%clk 0:00:16.5]} 90... Kh3 {[%clk 0:00:06.9]} 91.
Bd8 {[%clk 0:00:15.7]} 91... Kh2 {[%clk 0:00:06.6]} 92. Qf2+ {[%clk 0:00:16]}
92... Kh3 {[%clk 0:00:06.7]} 93. Qfg3# {[%clk 0:00:16.4]} 1-0

[Event "*** Titled Tuesday Blitz"]
[Site "Chess.com"]
[Date "2020.05.05"]
[Round "8"]
[White "cukin84"]
[Black "mjray79"]
[Result "1-0"]
[WhiteElo "2082"]
[BlackElo "2239"]
[TimeControl "180+1"]
[EndTime "11:29:35 PDT"]
[Termination "cukin84 won by checkmate"]

1. e4 {[%clk 0:03:00.9]} 1... e5 {[%clk 0:03:00]} 2. Nf3 {[%clk 0:03:00.3]} 2...
Nc6 {[%clk 0:03:00.3]} 3. c3 {[%clk 0:03:00]} 3... Nf6 {[%clk 0:02:56]} 4. d4
{[%clk 0:02:59.4]} 4... exd4 {[%clk 0:02:55.3]} 5. e5 {[%clk 0:02:59.2]} 5...
Ne4 {[%clk 0:02:49.5]} 6. Qe2 {[%clk 0:02:58.5]} 6... Nc5 {[%clk 0:02:44]} 7.
cxd4 {[%clk 0:02:57.9]} 7... Na6 {[%clk 0:02:42.9]} 8. d5 {[%clk 0:02:57.7]}
8... Ne7 {[%clk 0:02:41.7]} 9. d6 {[%clk 0:02:56]} 9... Ng6 {[%clk 0:02:40.1]}
10. Bg5 {[%clk 0:02:52.1]} 10... f6 {[%clk 0:02:35.4]} 11. exf6+ {[%clk
0:02:47.6]} 11... Kf7 {[%clk 0:02:35.6]} 12. Qc4+ {[%clk 0:02:45]} 12... Ke8
{[%clk 0:02:30.4]} 13. f7# {[%clk 0:02:44.6]} 1-0

[Event "*** Titled Tuesday Blitz"]
[Site "Chess.com"]
[Date "2020.05.05"]
[Round "8"]
[White "Gurvich_Vitaly"]
[Black "Aureliano-Buendia"]
[Result "1-0"]
[WhiteElo "2552"]
[BlackElo "2406"]
[TimeControl "180+1"]
[EndTime "11:29:54 PDT"]
[Termination "Gurvich_Vitaly won by resignation"]

1. e4 {[%clk 0:03:00.9]} 1... e5 {[%clk 0:02:58.8]} 2. Nf3 {[%clk 0:02:59.2]}
2... Nc6 {[%clk 0:02:59.3]} 3. Bb5 {[%clk 0:02:58.4]} 3... Nf6 {[%clk
0:02:59.2]} 4. O-O {[%clk 0:02:58.1]} 4... Nxe4 {[%clk 0:02:59.5]} 5. d4 {[%clk
0:02:58]} 5... Nd6 {[%clk 0:03:00.2]} 6. dxe5 {[%clk 0:02:57.8]} 6... Nxb5
{[%clk 0:03:00.6]} 7. a4 {[%clk 0:02:58]} 7... Nbd4 {[%clk 0:03:01]} 8. Nxd4
{[%clk 0:02:58.4]} 8... Nxd4 {[%clk 0:03:01.9]} 9. Qxd4 {[%clk 0:02:59.2]} 9...
d5 {[%clk 0:03:02.8]} 10. exd6 {[%clk 0:03:00.1]} 10... Qxd6 {[%clk 0:03:03.1]}
11. Qe4+ {[%clk 0:03:00.6]} 11... Qe6 {[%clk 0:03:03.5]} 12. Qd4 {[%clk
0:03:01.1]} 12... Qd6 {[%clk 0:03:03.7]} 13. Qe3+ {[%clk 0:03:01.5]} 13... Qe6
{[%clk 0:03:00.9]} 14. Qg3 {[%clk 0:03:01.2]} 14... Qc6 {[%clk 0:02:46.8]} 15.
Nc3 {[%clk 0:03:00.3]} 15... Be6 {[%clk 0:02:46.2]} 16. Nb5 {[%clk 0:02:59.4]}
16... O-O-O {[%clk 0:02:15.1]} 17. Nxa7+ {[%clk 0:02:58]} 1-0

[Event "*** Titled Tuesday Blitz"]
[Site "Chess.com"]
[Date "2020.05.05"]
[Round "8"]
[White "shav3184"]
[Black "S-Fazulyanov"]
[Result "1-0"]
[WhiteElo "2350"]
[BlackElo "2524"]
[TimeControl "180+1"]
[EndTime "11:30:17 PDT"]
[Termination "shav3184 won by resignation"]

1. e4 {[%clk 0:03:00.9]} 1... c5 {[%clk 0:03:00.1]} 2. Nf3 {[%clk 0:03:00.3]}
2... Nc6 {[%clk 0:03:00.5]} 3. d4 {[%clk 0:03:01.2]} 3... cxd4 {[%clk 0:03:01]}
4. Nxd4 {[%clk 0:03:01.8]} 4... g6 {[%clk 0:03:01.6]} 5. c4 {[%clk 0:03:01.2]}
5... Nf6 {[%clk 0:03:02]} 6. Nc3 {[%clk 0:03:00.7]} 6... Nxd4 {[%clk 0:03:02.2]}
7. Qxd4 {[%clk 0:03:00.2]} 7... d6 {[%clk 0:03:03.1]} 8. Be2 {[%clk 0:02:59.5]}
8... Bg7 {[%clk 0:03:03.2]} 9. Be3 {[%clk 0:02:59.3]} 9... O-O {[%clk
0:03:03.6]} 10. Qd2 {[%clk 0:02:59.2]} 10... Ng4 {[%clk 0:03:04]} 11. Bxg4
{[%clk 0:02:58.8]} 11... Bxg4 {[%clk 0:03:03.7]} 12. O-O {[%clk 0:02:58.8]}
12... Rc8 {[%clk 0:03:02.3]} 13. b3 {[%clk 0:02:56.8]} 13... a6 {[%clk
0:03:02.2]} 14. Rac1 {[%clk 0:02:55.9]} 14... b5 {[%clk 0:02:32.4]} 15. cxb5
{[%clk 0:02:48.3]} 15... Bxc3 {[%clk 0:02:31.7]} 16. Rxc3 {[%clk 0:02:47.8]}
16... Rxc3 {[%clk 0:02:32.4]} 17. Qxc3 {[%clk 0:02:47.6]} 17... axb5 {[%clk
0:02:33.3]} 18. Bh6 {[%clk 0:02:47.6]} 18... f6 {[%clk 0:02:33.4]} 19. Bxf8
{[%clk 0:02:47.5]} 19... Kxf8 {[%clk 0:02:33.2]} 20. Rc1 {[%clk 0:02:46.6]}
20... Kf7 {[%clk 0:02:30.1]} 21. a4 {[%clk 0:02:40.9]} 21... bxa4 {[%clk
0:02:28.9]} 22. bxa4 {[%clk 0:02:41.8]} 22... Qa5 {[%clk 0:02:26]} 23. Qxa5
{[%clk 0:02:41]} 1-0